[Event "Karnataka State Open-ch 2018"]
[Site "Bengaluru"]
[Date "2018.04.17"]
[Round "8"]
[White "Sameer, Ghotane"]
[Black "Shriya R Revankar"]
[Result "1/2-1/2"]
[ECO "E32"]
[WhiteElo "1881"]
[BlackElo "1472"]
[Annotator "NA RC"]
[PlyCount "79"]
[EventDate "2018.??.??"]
[EventType "swiss"]
[EventCountry "IND"]
[SourceTitle "playchess.com"]
[Source "ChessBase"]
[SourceQuality "1"]
[TimeControl "5400+30"]

{[%evp 15,79,11,32767,32767,32767,32767,22,27,17,21,18,31,28,29,49,41,32767,56,50,14,45,14,27,10,16,-59,32767,32767,32767,-82,-75,-93,32767,-90,-75,-113,-92,-125,510,568,32767,592,1464,224,206,81,76,68,48,0,0,-50,-35,-18,13,13,14,-320,-367,-326,-401,-452,-512,-541,0,-4794]} 1. d4 {[%emt 0:00:25]} Nf6 {[%emt 0:00:02]} 2. c4 {[%emt 0:00:06]} e6 {[%emt 0:00:03]} 3. Nc3 {[%emt 0:00:37]} Bb4 {[%emt 0:00:05]} 4. Qc2 {[%emt 0:00:06]} O-O {[%emt 0:00:04]} 5. a3 {[%emt 0:00:22]} Bxc3+ {[%emt 0:00:05]} 6. Qxc3 {[%emt 0:00:05]} Ne4 {[%emt 0:00:16]} 7. Qc2 {[%emt 0:00:07]} f5 {[%emt 0:00:04]} 8. Nh3 {[%emt 0:01:19]} d6 {[%emt 0:00:30]} 9. f3 {[%emt 0:00:12]} Nf6 {[%emt 0:00:03]} 10. Nf2 {[%emt 0:00:19] E32: Nimzo-Indian: Classical (4 Qc2): 4...0-0} (10. e3 e5 11. dxe5 dxe5 12. Be2 c5 13. b4 f4 14. Nf2 Nc6 15. Qb2 Qe7 16. O-O cxb4 17. exf4 exf4 18. axb4 Qxb4 19. Qa2 Re8 20. Bxf4 {½-½ (55) Steingrimsson,H (2576)-Wells,P (2447) Antalya 2017}) 10... Nc6 {[%emt 0:02:06]} 11. e3 {[%emt 0:00:24]} e5 {[%emt 0:01:15]} 12. dxe5 {[%emt 0:00:17]} dxe5 {[%emt 0:00:06]} 13. Be2 {[%emt 0:00:34] LiveBook: 5 Games} e4 {[%emt 0:05:59]} 14. f4 {[%emt 0:00:31]} a5 $146 {[%emt 0:00:35]} ({Predecessor:} 14... Be6 15. Bd2 Qe8 16. O-O-O Qg6 {1-0 (41) Gurmen,A (2389)-Dlugolecki,G (2102) ICCF email 2009}) 15. b3 {[%emt 0:00:33]} Qe7 {[%emt 0:01:36]} 16. Bb2 {[%emt 0:01:18]} Nd8 {[%emt 0:04:02]} 17. O-O {[%emt 0:02:25]} Ne6 {[%emt 0:01:08]} 18. Kh1 {[%emt 0:00:40]} Bd7 {[%emt 0:00:52]} 19. g4 {[%emt 0:02:09]} fxg4 {[%emt 0:03:18]} 20. Nxg4 {[%emt 0:05:33]} ({Better is} 20. Bxg4 $11 Nd4 21. Bxd4 Nxg4 22. Rg1 Nxf2+ 23. Qxf2) 20... Nxg4 {[%emt 0:00:36]} 21. Bxg4 {[%emt 0:00:09]} Nd4 {[%emt 0:02:56]} 22. Qg2 {[%emt 0:04:56]} Bxg4 {[%emt 0:00:39]} ({Much worse is} 22... Nxb3 $6 23. Bxd7 Qxd7 24. Rad1 $16) 23. Qxg4 {[%emt 0:00:06]} Nf5 {[%emt 0:00:42]} 24. Rg1 {[%emt 0:01:32]} Rf7 {[%emt 0:00:53]} 25. Qh3 {[%emt 0:01:43]} Rd8 {[%emt 0:02:35]} 26. Rg5 {[%emt 0:00:26]} g6 $2 {[%emt 0:02:29] [#]} (26... Rd2 $17 {stays on course.} 27. Be5 (27. Rxf5 Qe6 $17) 27... Qd7) 27. Rxg6+ $1 {[%emt 0:01:00]} Kf8 {[%emt 0:02:03] [#]} 28. Rag1 $1 {[%emt 0:00:05]} Qc5 {[%emt 0:04:00]} 29. Rg8+ $2 {[%emt 0:04:34]} (29. Bf6 {[%csl Gg1][%cal Rg6g8]} Ke8 30. Rg8+ Kd7 31. Rxd8+ Kc6 {[#]} 32. b4 $1 {[%mdl 512]} axb4 33. axb4 Ng3+ 34. hxg3 Qxc4 35. b5+ $1 {[%mdl 512]} Kxb5 36. Qf5+ Kc6 37. Rd4) 29... Ke7 {[%emt 0:00:06]} 30. Rxd8 {[%emt 0:00:57]} Kxd8 {[%emt 0:00:05]} 31. Rd1+ {[%emt 0:09:18]} Kc8 $1 {[%emt 0:00:35]} 32. Qg4 {[%emt 0:01:52]} b6 $1 {[%emt 0:02:32]} 33. Bd4 Qxa3 {[%emt 0:03:30]} 34. c5 {[%emt 0:15:54]} Qxb3 {[%emt 0:00:45]} (34... Kb7 $17 35. cxb6 cxb6) 35. cxb6 {[%emt 0:01:04]} cxb6 {[%emt 0:05:57]} 36. Qg8+ $2 {[%emt 0:07:42]} (36. Bxb6 $11 {and White is okay.} Kb7 37. Qg1 (37. Bc5 Nxe3 38. Bxe3 Qxe3 $17)) 36... Kb7 {[%emt 0:00:23]} 37. Qg1 {[%emt 0:06:12]} b5 {[%emt 0:02:07]} 38. Rb1 {[%emt 0:00:16]} Qd3 {[%emt 0:00:55]} 39. Be5 {[%emt 0:03:26]} Qe2 $2 {[%emt 0:06:07]} (39... Rd7 $19 40. Re1 Qd2) 40. Rd1 $19 (40. Qg8 $11 Qf3+ 41. Kg1 Qxe3+ 42. Kh1 Qf3+ 43. Kg1 Qe3+ 44. Kh1 Qf3+ 45. Kg1 Qe3+) 1/2-1/2

[Event "Karnataka State Open-ch 2018"]
[Site "Bengaluru"]
[Date "2018.04.17"]
[Round "8"]
[White "Dilip Kumar Pedda"]
[Black "Manjunath, J."]
[Result "1-0"]
[ECO "D18"]
[WhiteElo "1653"]
[BlackElo "1986"]
[Annotator "NA RC"]
[PlyCount "76"]
[EventDate "2018.??.??"]
[EventType "swiss"]
[EventCountry "IND"]
[SourceTitle "playchess.com"]
[Source "ChessBase"]
[SourceQuality "1"]
[TimeControl "5400+30"]

{[%evp 10,76,32,5,21,23,11,27,20,0,0,0,0,-11,-13,-4,-13,-18,-5,-26,-44,-37,-24,-30,-28,32767,-47,-52,-58,-31,0,-27,-30,-59,-16,-35,-41,-62,-29,-33,-27,-41,-35,-45,202,-366,279,-252,-233,-237,-15,-264,545,572,1021,1086,1278,851,829,643,801,736,800,-29999,1201,492,29991,417,29992]} 1. d4 {[%emt 0:00:00]} d5 {[%emt 0:00:14]} 2. c4 {[%emt 0:00:00]} c6 {[%emt 0:00:04]} 3. Nf3 {[%emt 0:00:00]} Nf6 {[%emt 0:00:05]} 4. Nc3 {[%emt 0:00:00]} dxc4 {[%emt 0:00:03]} 5. a4 {[%emt 0:00:02]} Bf5 {[%emt 0:00:28]} 6. e3 {[%emt 0:03:18]} e6 {[%emt 0:00:34]} 7. Bxc4 {[%emt 0:00:17]} Bb4 {[%emt 0:00:33]} 8. O-O {[%emt 0:01:06]} O-O {[%emt 0:00:27]} 9. Ne2 {[%emt 0:00:29]} Nbd7 {[%emt 0:01:40] D18: Slav Defence: 5 a4 Bf5 6 e3} 10. Ng3 {[%emt 0:00:42]} Bg6 {[%emt 0:00:14] LiveBook: 8 Games} 11. Bd3 {[%emt 0:03:31]} (11. Nh4 c5 12. Nxg6 hxg6 13. Qb3 Qe7 14. a5 Rab8 15. Be2 Rfc8 16. Rd1 b6 17. a6 {0-1 (76) Ikonnikov,V (2542)-Wenninger,P (2360) Germany 2016}) 11... Qe7 $146 {[%emt 0:00:42]} ({Predecessor:} 11... Bxd3 12. Qxd3 Qe7 13. e4 Rad8 14. e5 Nd5 15. Ng5 f5 16. exf6 N7xf6 17. Qe2 {1-0 (41) Angel Lobo,J-Abad Pereda,J Asturias 1998}) 12. Bxg6 {[%emt 0:00:21]} hxg6 {[%emt 0:00:05]} 13. a5 {[%emt 0:07:32]} e5 {[%emt 0:04:59]} 14. dxe5 {[%emt 0:02:41]} Nxe5 {[%emt 0:00:08]} 15. Nxe5 {[%emt 0:00:26]} Qxe5 {[%emt 0:00:06]} 16. Qa4 {[%emt 0:01:32]} Be7 {[%emt 0:02:45]} 17. b3 {[%emt 0:08:37]} Rfd8 {[%emt 0:02:15]} 18. Rb1 {[%emt 0:01:13]} Qe6 {[%emt 0:02:45]} 19. Bb2 {[%emt 0:08:07]} Rd3 {[%emt 0:00:55]} 20. b4 {[%emt 0:00:57]} a6 {[%emt 0:03:39]} 21. Bd4 {[%emt 0:04:35]} Rd8 {[%emt 0:01:08]} 22. Qc2 {[%emt 0:05:27]} Ra3 {[%emt 0:00:07]} 23. Rb2 {[%emt 0:08:35]} Nd5 {[%emt 0:02:00]} 24. Rfb1 {[%emt 0:01:28]} Nc7 {[%emt 0:05:26]} 25. Bb6 {[%emt 0:06:12]} Rd7 {[%emt 0:01:24]} 26. Bxc7 {[%emt 0:00:30]} Bf6 $2 {[%emt 0:00:30] [#]} (26... Rxc7 $15 27. Ne2 Rd7) 27. Ne2 $4 {[%emt 0:12:09]} (27. Bb6 $1 $18 {avoids the disaster.}) 27... Qf5 $4 {[%emt 0:04:25]} ({Weaker is} 27... Rxc7 28. Nf4 $15) (27... Bxb2 $19 {and all is fine.} 28. Qxb2 Ra2) 28. Nf4 $4 {[%emt 0:07:44]} (28. e4 $18 Qb5 29. e5) 28... Bxb2 {[%emt 0:01:18]} 29. Qxb2 {[%emt 0:00:10] [#]} Ra4 $2 {[%emt 0:00:03]} (29... Rd2 $1 $19 {[%cal Rd2b2][%mdl 512]} 30. Qc1 (30. Qxd2 Qxb1+) 30... Raa2) 30. Ne2 $2 {[%emt 0:04:47] [#]} (30. Bb6 $11 {and White is okay.} Rd2 31. Qc1) 30... Qd5 $4 {[%emt 0:00:57]} (30... c5 $1 $19 31. e4 Qxe4) 31. Nc3 $1 {[%emt 0:00:38]} Rxb4 {[%emt 0:04:14]} 32. Qxb4 {[%emt 0:00:10]} Qd2 {[%emt 0:00:03]} 33. Qc4 {[%emt 0:01:27]} Qc2 {[%emt 0:00:22]} 34. Qe4 {[%emt 0:01:21]} Rd3 {[%emt 0:01:16]} 35. Qe8+ {[%emt 0:00:22]} Kh7 {[%emt 0:00:25]} 36. Ne4 $4 {[%emt 0:00:47]} (36. h3 $18 Rxc3 37. Rb4) 36... Rd5 $4 {[%emt 0:00:09]} (36... Qxb1# {and life is good for Black.}) 37. h4 {[%emt 0:00:41]} (37. Rf1 $142 Qd3 38. Qe7) 37... f6 {[%emt 0:00:15] [#]} (37... Qxb1+ $18 38. Kh2 f6) 38. Qe7 $18 {[%emt 0:02:01]} (38. Nxf6+ $142 $1 gxf6 39. Qf7+ Kh6 40. Bf4+ Kh5 {[#]} 41. f3 $1 {[%mdl 512]} Qxb1+ 42. Kh2 Qh1+ 43. Kxh1 Rd1+ 44. Kh2 Rh1+ 45. Kxh1 Kxh4 46. Qh7#) 38... Qb2 $2 {[%emt 0:00:03]} (38... Qxb1+ $18 39. Kh2 Qa1) 1-0

[Event "Karnataka State Open-ch 2018"]
[Site "Bengaluru"]
[Date "2018.04.17"]
[Round "8"]
[White "Pavan C"]
[Black "Raghavendra, V."]
[Result "0-1"]
[ECO "A45"]
[WhiteElo "1622"]
[BlackElo "1898"]
[Annotator "NA"]
[PlyCount "116"]
[EventDate "2018.??.??"]
[EventType "swiss"]
[EventCountry "IND"]
[SourceTitle "playchess.com"]
[Source "ChessBase"]
[SourceQuality "1"]
[TimeControl "5400+30"]

{[%evp 8,109,0,-4,8,0,12,-9,20,20,38,34,61,10,12,8,64,0,75,78,75,32767,32767,32767,91,85,90,58,32767,32767,32767,35,31,-4,0,0,0,-8,0,-11,0,0,0,0,0,0,0,0,0,0,0,-12,0,0,0,0,0,-66,-30,-31,-70,32767,32767,32767,-33,-50,-45,-82,-79,-183,-104,-76,-114,-97,-150,-122,-10,-467,-487,-447,-528,-633,-483,-441,-593,-493,-524,-487,-595,32767,0,-407,-408,-504,-424,-440,-480,-430,-434,-467,-489,-525,-497,-535]} 1. d4 {[%emt 0:00:00]} Nf6 {[%emt 0:00:02]} 2. e3 {[%emt 0:00:00]} g6 {[%emt 0:00:13]} 3. Bd3 {[%emt 0:00:14]} Bg7 {[%emt 0:00:06]} 4. f4 {[%emt 0:00:57]} d6 {[%emt 0:00:29]} 5. Nf3 {[%emt 0:00:08]} O-O {[%emt 0:00:22]} 6. O-O {[%emt 0:00:08]} c5 {[%emt 0:02:31]} 7. c3 {[%emt 0:00:56] LiveBook: 17 Games} b6 {[%emt 0:00:53] A45: Trompowsky Attack} 8. e4 {[%emt 0:04:47]} Ba6 {[%emt 0:01:35]} 9. d5 $146 {[%emt 0:02:34]} ({Predecessor:} 9. f5 Qd7 10. Bxa6 Nxa6 11. Qe2 Qb7 12. e5 Ne4 13. fxg6 fxg6 14. d5 Qxd5 15. Qxa6 {0-1 (42) Vigfusson,T (2260)-Olafsson,H (2498) Iceland 1999}) 9... Qd7 {[%emt 0:09:37]} 10. a4 {[%emt 0:06:16]} Bxd3 {[%emt 0:01:14]} 11. Qxd3 {[%emt 0:00:07]} Qb7 {[%emt 0:00:16]} (11... e6 $11) 12. c4 {[%emt 0:02:44]} Nfd7 {[%emt 0:02:07]} (12... e6 $11 {remains equal.}) 13. Nc3 {[%emt 0:02:20]} Na6 {[%emt 0:00:13]} 14. b3 {[%emt 0:04:04]} Nb4 {[%emt 0:00:31]} 15. Qd2 {[%emt 0:00:02]} a6 {[%emt 0:04:01]} 16. Bb2 {[%emt 0:01:02]} Rfe8 {[%emt 0:05:32]} 17. Na2 {[%emt 0:04:02]} Bxb2 {[%emt 0:01:08]} 18. Qxb2 {[%emt 0:00:07]} Nxa2 {[%emt 0:01:10]} 19. Rxa2 {[%emt 0:02:38]} b5 {[%emt 0:01:08]} 20. f5 {[%emt 0:05:00]} bxc4 {[%emt 0:00:41]} 21. bxc4 {[%emt 0:00:16]} Qxb2 {[%emt 0:00:30]} 22. Rxb2 {[%emt 0:00:10]} Rab8 {[%emt 0:02:47]} 23. Rfb1 {[%emt 0:00:05]} Rxb2 {[%emt 0:02:23]} 24. Rxb2 {[%emt 0:00:06]} Rb8 {[%emt 0:00:11]} 25. Rxb8+ {[%emt 0:00:59]} Nxb8 {[%emt 0:00:02]} 26. a5 {[%emt 0:05:10]} Nd7 {[%emt 0:02:27]} 27. fxg6 {[%emt 0:06:56]} hxg6 {[%emt 0:00:04]} 28. Kf2 {[%emt 0:00:54]} Kg7 {[%emt 0:00:21]} 29. h3 {[%emt 0:01:18]} Kf6 {[%emt 0:00:49]} 30. Ke3 {[%emt 0:01:19]} g5 {[%emt 0:04:30]} 31. g3 Kg6 {[%emt 0:00:35]} 32. g4 {[%emt 0:06:10]} (32. Kf2 $11) 32... Kf6 {[%emt 0:02:20]} 33. Ke2 {[%emt 0:01:52]} Ne5 {[%emt 0:00:52]} 34. Nd2 {[%emt 0:00:17]} Ng6 {[%emt 0:01:51]} 35. Kf3 {[%emt 0:05:42]} Ke5 {[%emt 0:04:46]} 36. Ke3 {[%emt 0:02:30]} Nh4 {[%emt 0:01:44]} 37. Nb3 {[%emt 0:07:22]} Ng2+ {[%emt 0:02:43]} 38. Kf2 {[%emt 0:00:56]} Nf4 {[%emt 0:00:44]} (38... Kxe4 $19 39. Kxg2 Kd3) 39. Ke3 {[%emt 0:00:03]} Nxh3 {[%emt 0:03:40]} 40. Nd2 {[%emt 0:01:31] [#]} Kf6 $1 {[%emt 0:02:21]} 41. Nf3 {[%emt 0:02:03] [#]} Nf4 {[%emt 0:01:04]} ({Black should try} 41... Kg7 $1 $17 42. e5 f6) 42. Nd2 $2 {[%emt 0:00:23]} (42. e5+ $1 $11 Kg6 43. Nd2) 42... Ng6 {[%emt 0:00:24]} 43. Kf3 {[%emt 0:00:40]} Ne5+ {[%emt 0:03:22]} 44. Kg3 {[%emt 0:00:23]} Kg6 {[%emt 0:04:30]} 45. Kh3 {[%emt 0:00:27]} Kg7 {[%emt 0:00:44]} 46. Kg3 {[%emt 0:00:45]} Kf6 $2 {[%emt 0:00:03]} 47. Kh3 $1 {[%emt 0:00:45]} Nd3 {[%emt 0:00:02]} 48. Kg3 {[%emt 0:00:25]} Ne5 {[%emt 0:12:19]} ({Black should try} 48... Ke5 $19 49. Nf3+ Kxe4 50. Nxg5+ Kd4 51. Nxf7 Kxc4) 49. Kh3 {[%emt 0:00:11]} Ng6 {[%emt 0:00:42]} 50. Kg3 {[%emt 0:04:03]} Nh4 {[%emt 0:00:30]} 51. Kf2 {[%emt 0:00:41]} Ke5 {[%emt 0:00:55]} 52. Ke3 {[%emt 0:00:36]} e6 {[%emt 0:02:00]} 53. dxe6 {[%emt 0:01:46]} fxe6 {[%emt 0:00:59]} 54. Nb3 {[%emt 0:00:51]} Ng2+ {[%emt 0:01:22]} 55. Kf2 $19 {[%emt 0:00:33]} Kxe4 {[%emt 0:02:45]} 56. Kxg2 {[%emt 0:00:55]} Kd3 {[%emt 0:00:02]} 57. Kf3 {[%emt 0:00:50]} Kc2 {[%emt 0:01:53]} 58. Na1+ {[%emt 0:00:31]} Kb2 {[%emt 0:00:44]} 0-1

[Event "Karnataka State Open-ch 2018"]
[Site "Bengaluru"]
[Date "2018.04.17"]
[Round "8"]
[White "Sushrutha, Reddy"]
[Black "Jagadish, V."]
[Result "0-1"]
[ECO "C68"]
[WhiteElo "1583"]
[BlackElo "2157"]
[Annotator "ChessBase"]
[PlyCount "139"]
[EventDate "2018.??.??"]
[EventType "swiss"]
[EventCountry "IND"]
[SourceTitle "playchess.com"]
[Source "ChessBase"]
[SourceQuality "1"]
[TimeControl "5400+30"]

1. e4 {[%emt 0:00:37]} e5 {[%emt 0:00:14]} 2. Nf3 {[%emt 0:00:34]} Nc6 {[%emt 0:00:10]} 3. Bb5 {[%emt 0:00:23]} a6 {[%emt 0:00:29]} 4. Bxc6 {[%emt 0:00:34]} dxc6 {[%emt 0:00:05]} 5. Nxe5 {[%emt 0:00:12]} Qd4 {[%emt 0:01:26]} 6. Nf3 {[%emt 0:00:19]} Qxe4+ {[%emt 0:00:16]} 7. Qe2 {[%emt 0:00:03]} Qxe2+ {[%emt 0:00:06]} 8. Kxe2 {[%emt 0:00:02]} Nf6 {[%emt 0:03:03]} 9. d4 {[%emt 0:00:46]} Bf5 {[%emt 0:00:30]} 10. c3 {[%emt 0:00:31]} O-O-O {[%emt 0:01:15]} 11. Be3 {[%emt 0:01:10]} Bd6 {[%emt 0:02:34]} 12. Re1 {[%emt 0:01:41]} Ng4 {[%emt 0:00:47]} 13. h3 {[%emt 0:00:44]} Nxe3 {[%emt 0:00:13]} 14. fxe3 {[%emt 0:01:47]} Bg3 {[%emt 0:01:01]} 15. Rf1 {[%emt 0:00:42]} Rhe8 {[%emt 0:00:46]} 16. Kd2 {[%emt 0:02:29]} Re7 {[%emt 0:00:45]} 17. Ne1 {[%emt 0:02:27]} Be4 {[%emt 0:00:42]} 18. Na3 {[%emt 0:00:14]} Rde8 {[%emt 0:02:06]} 19. Nac2 {[%emt 0:00:25]} Bxe1+ {[%emt 0:01:24]} 20. Nxe1 {[%emt 0:10:14]} Bd5 {[%emt 0:00:05]} 21. Nf3 {[%emt 0:03:47]} Rxe3 {[%emt 0:01:39]} 22. Rfe1 {[%emt 0:00:21]} Rxe1 {[%emt 0:00:12]} 23. Nxe1 {[%emt 0:00:10]} f6 {[%emt 0:04:22]} 24. b3 {[%emt 0:10:39]} Kd7 {[%emt 0:01:04]} 25. Nd3 {[%emt 0:02:04]} b6 {[%emt 0:04:32]} 26. g3 {[%emt 0:05:19]} Bf3 {[%emt 0:01:26]} 27. Nf4 {[%emt 0:00:59]} g5 {[%emt 0:02:14]} 28. Rf1 {[%emt 0:00:03]} gxf4 {[%emt 0:00:05]} 29. Rxf3 {[%emt 0:00:12]} fxg3 {[%emt 0:00:09]} 30. Rxg3 {[%emt 0:00:01]} Re7 {[%emt 0:01:36]} 31. Rg4 {[%emt 0:01:49]} Ke8 {[%emt 0:00:25]} 32. Rh4 {[%emt 0:00:13]} Kf8 {[%emt 0:00:28]} 33. c4 {[%emt 0:00:34]} Kg7 {[%emt 0:00:29]} 34. Rg4+ {[%emt 0:00:02]} Kf7 {[%emt 0:00:23]} 35. a4 {[%emt 0:00:28]} f5 {[%emt 0:00:29]} 36. Rg1 {[%emt 0:01:01]} Kf6 {[%emt 0:00:44]} 37. a5 {[%emt 0:00:02]} b5 38. Rg8 {[%emt 0:00:31]} f4 {[%emt 0:16:34]} 39. Rf8+ {[%emt 0:00:36]} Kg5 {[%emt 0:01:07]} 40. Rg8+ {[%emt 0:00:34]} Kf5 {[%emt 0:03:29]} 41. Rf8+ {[%emt 0:00:18]} Ke4 {[%emt 0:04:13]} 42. Rf6 {[%emt 0:00:20]} Kxd4 {[%emt 0:03:22]} 43. Rxf4+ {[%emt 0:00:12]} Kc5 {[%emt 0:01:30]} 44. cxb5 {[%emt 0:01:58]} Kxb5 {[%emt 0:07:03]} 45. b4 {[%emt 0:04:07]} c5 {[%emt 0:00:56]} 46. bxc5 {[%emt 0:00:28]} Kxc5 {[%emt 0:00:31]} 47. Rf5+ {[%emt 0:00:26]} Kb4 {[%emt 0:00:46]} 48. h4 {[%emt 0:00:23]} c5 {[%emt 0:01:18]} 49. h5 {[%emt 0:00:19]} Rc7 {[%emt 0:00:41]} 50. Kd3 {[%emt 0:02:14]} c4+ {[%emt 0:00:17]} 51. Kc2 {[%emt 0:00:09]} Rc5 {[%emt 0:01:23]} 52. Rf6 {[%emt 0:01:47]} Kxa5 {[%emt 0:02:00]} 53. Kc3 {[%emt 0:02:11]} Rxh5 {[%emt 0:02:20]} 54. Kxc4 {[%emt 0:00:44]} Rh1 {[%emt 0:00:09]} 55. Kb3 {[%emt 0:00:33]} Rb1+ {[%emt 0:03:18]} 56. Ka3 {[%emt 0:01:50]} Rh1 {[%emt 0:05:59]} 57. Re6 {[%emt 0:00:39]} h5 {[%emt 0:00:25]} 58. Rg6 {[%emt 0:01:42]} h4 {[%emt 0:00:16]} 59. Rh6 {[%emt 0:00:18]} h3 {[%emt 0:00:09]} 60. Ka2 {[%emt 0:00:15]} h2 {[%emt 0:00:11]} 61. Rh8 {[%emt 0:00:23]} Kb5 {[%emt 0:06:52]} 62. Kb2 {[%emt 0:04:57]} Kc5 {[%emt 0:00:19]} 63. Ka2 {[%emt 0:00:22]} a5 {[%emt 0:00:10]} 64. Kb2 {[%emt 0:00:13]} Kd5 {[%emt 0:00:07]} 65. Ka2 {[%emt 0:00:11]} Ke5 {[%emt 0:00:15]} 66. Kb2 {[%emt 0:00:20]} Kf5 {[%emt 0:00:04]} 67. Ka2 {[%emt 0:00:17]} Kg6 {[%emt 0:00:05]} 68. Kb2 {[%emt 0:00:25]} a4 {[%emt 0:00:05]} 69. Ka2 {[%emt 0:00:12]} a3 {[%emt 0:00:06]} 70. Rh3 {[%emt 0:00:13]} 0-1